[Event "GM ZIA Smirity-A 2025"]
[Site "Dhaka"]
[Date "2025.02.17"]
[Round "2.12"]
[White "Md Nasir Uddin"]
[Black "Safayat, Kibria Azaan"]
[Result "1-0"]
[Annotator "NA"]
[ECO "B97"]
[WhiteElo "2010"]
[BlackElo "1850"]
[PlyCount "61"]
[EventDate "2025.02.17"]
[EventType "swiss"]
[EventCountry "BAN"]
[SourceTitle "playchess.com"]
[Source "ChessBase"]
[SourceQuality "1"]
[TimeControl "5400+30"]

1. e4 {[%emt 0:03:09]} c5 {[%emt 0:00:19]} 2. Nf3 {[%emt 0:00:09]} d6 {[%emt 0:00:42]} 3. d4 {[%emt 0:00:05]} cxd4 {[%emt 0:00:17]} 4. Nxd4 {[%emt 0:00:04]} Nf6 {[%emt 0:00:48]} 5. Nc3 {[%emt 0:00:04]} a6 {[%emt 0:00:43]} 6. Bg5 {[%emt 0:00:32]} e6 {[%emt 0:00:55]} 7. f4 {[%emt 0:00:03]} h6 {[%emt 0:00:22]} 8. Bh4 {[%emt 0:00:03]} Qb6 {[%emt 0:01:07]} 9. Qd2 {[%emt 0:00:04]} Qb5 10. b3 Qxb3 {[%emt 0:01:51]} 11. Rb1 {[%emt 0:00:39]} Qa3 {[%emt 0:00:08]} 12. e5 {[%emt 0:00:03]} dxe5 {[%emt 0:00:59]} 13. fxe5 {[%emt 0:00:03]} Nfd7 {[%emt 0:00:27]} 14. Ne4 {[%emt 0:00:10]} Qxa2 {[%emt 0:00:39]} 15. Rd1 {[%emt 0:00:03]} Qd5 {[%emt 0:00:41]} 16. Qe3 {[%emt 0:00:04]} Qxe5 {[%emt 0:00:32]} 17. c3 {[%emt 0:01:40]} Nc6 {[%emt 0:25:40]} 18. Nxe6 {[%emt 0:33:08]} fxe6 {[%emt 0:07:35]} 19. Bg3 {[%emt 0:02:15]} Bc5 {[%emt 0:04:41]} 20. Qd3 {[%emt 0:03:28]} Qf5 {[%emt 0:03:08]} 21. Bd6 {[%emt 0:02:35]} Nce5 {[%emt 0:07:37]} 22. Qb1 {[%emt 0:07:10]} Nf7 {[%emt 0:02:14]} 23. Bd3 {[%emt 0:01:19]} Bxd6 {[%emt 0:05:30]} 24. Nxd6+ {[%emt 0:00:17]} Nxd6 {[%emt 0:00:06]} 25. Bxf5 {[%emt 0:00:07]} Nxf5 {[%emt 0:00:07]} 26. g4 {[%emt 0:01:19]} Ne7 {[%emt 0:02:06]} 27. O-O {[%emt 0:00:18]} Nf6 {[%emt 0:00:57]} 28. Qd3 {[%emt 0:06:37]} O-O {[%emt 0:01:18]} 29. Qe2 {[%emt 0:07:33]} Ng6 {[%emt 0:03:56]} 30. Kg2 e5 {[%emt 0:02:24]} 31. Qc4+ {[%emt 0:04:33]} 1-0

[Event "GM ZIA Smirity-A 2025"]
[Site "Dhaka"]
[Date "2025.02.17"]
[Round "2.13"]
[White "Aiyan, Rahman"]
[Black "Sagor"]
[Result "1/2-1/2"]
[Annotator "NA"]
[ECO "A31"]
[WhiteElo "1827"]
[BlackElo "2001"]
[PlyCount "39"]
[EventDate "2025.02.17"]
[EventType "swiss"]
[EventCountry "BAN"]
[SourceTitle "playchess.com"]
[Source "ChessBase"]
[SourceQuality "1"]
[TimeControl "5400+30"]

1. e4 {[%emt 0:00:03]} c5 {[%emt 0:01:18]} 2. Nf3 {[%emt 0:00:22]} e6 {[%emt 0:00:34]} 3. d4 {[%emt 0:00:09]} cxd4 {[%emt 0:00:01]} 4. Nxd4 {[%emt 0:00:01]} a6 {[%emt 0:00:24]} 5. c4 {[%emt 0:03:18]} Qc7 {[%emt 0:00:25]} 6. Nc3 {[%emt 0:00:25]} Nf6 {[%emt 0:00:24]} 7. Be3 {[%emt 0:02:58]} d6 {[%emt 0:04:16]} 8. f3 {[%emt 0:00:19]} Be7 {[%emt 0:00:27]} 9. Be2 {[%emt 0:00:06]} Nbd7 {[%emt 0:00:18]} 10. O-O {[%emt 0:02:36]} O-O {[%emt 0:00:38]} 11. Qd2 {[%emt 0:00:30]} b6 {[%emt 0:00:30]} 12. Rfd1 {[%emt 0:00:30]} Bb7 {[%emt 0:00:30]} 13. Rac1 {[%emt 0:01:40]} Rac8 14. Kh1 {[%emt 0:03:47]} Qb8 {[%emt 0:02:29]} 15. Bf1 {[%emt 0:03:04]} Ne5 {[%emt 0:04:41]} 16. b3 {[%emt 0:04:22]} Nfd7 {[%emt 0:05:51]} 17. Qf2 {[%emt 0:12:06]} Bd8 {[%emt 0:01:18]} 18. Na4 {[%emt 0:05:27]} Bc7 {[%emt 0:05:17]} 19. b4 {[%emt 0:11:53]} Nc6 {[%emt 0:03:40]} 20. Nb3 {[%emt 0:35:00]} 1/2-1/2

[Event "GM ZIA Smirity-A 2025"]
[Site "Dhaka"]
[Date "2025.02.17"]
[Round "2.14"]
[White "Tashriq Saihan, Shan"]
[Black "Khan, Nazrana"]
[Result "1/2-1/2"]
[Annotator "NA"]
[ECO "B42"]
[WhiteElo "1974"]
[BlackElo "1840"]
[PlyCount "95"]
[EventDate "2025.02.17"]
[EventType "swiss"]
[EventCountry "BAN"]
[SourceTitle "playchess.com"]
[Source "ChessBase"]
[SourceQuality "1"]
[TimeControl "5400+30"]

1. e4 {[%emt 0:00:03]} c5 {[%emt 0:00:05]} 2. Nf3 {[%emt 0:00:05]} e6 {[%emt 0:00:07]} 3. d4 {[%emt 0:00:04]} cxd4 {[%emt 0:00:05]} 4. Nxd4 {[%emt 0:00:05]} a6 {[%emt 0:00:07]} 5. Bd3 {[%emt 0:00:19]} Nf6 {[%emt 0:00:21]} 6. O-O {[%emt 0:00:26]} Qc7 {[%emt 0:00:23]} 7. Qe2 {[%emt 0:00:16]} d6 {[%emt 0:00:30]} 8. f4 {[%emt 0:00:41]} g6 {[%emt 0:00:36]} 9. f5 {[%emt 0:03:21]} Bg7 {[%emt 0:00:41]} 10. fxe6 {[%emt 0:08:19]} fxe6 11. Be3 {[%emt 0:02:37]} e5 12. Nf3 O-O {[%emt 0:11:13]} 13. c4 Nbd7 {[%emt 0:06:53]} 14. Nc3 {[%emt 0:02:37]} Nc5 {[%emt 0:01:20]} 15. b4 {[%emt 0:03:28]} Ne6 {[%emt 0:02:27]} 16. Nd5 {[%emt 0:02:42]} Nxd5 {[%emt 0:01:29]} 17. cxd5 {[%emt 0:01:34]} Nf4 {[%emt 0:01:06]} 18. Qd2 {[%emt 0:03:15]} Bg4 {[%emt 0:01:59]} 19. h3 {[%emt 0:02:06]} Bxf3 {[%emt 0:01:17]} 20. Rxf3 {[%emt 0:00:47]} Rac8 {[%emt 0:04:57]} 21. Rc1 {[%emt 0:04:51]} Qxc1+ {[%emt 0:02:42]} 22. Qxc1 {[%emt 0:00:06]} Rxc1+ {[%emt 0:00:57]} 23. Bxc1 {[%emt 0:00:03]} Nxd3 {[%emt 0:01:44]} 24. Rxd3 {[%emt 0:00:19]} Rc8 {[%emt 0:01:06]} 25. Bd2 {[%emt 0:04:48]} Rc4 {[%emt 0:03:25]} 26. Re3 {[%emt 0:00:35]} b5 {[%emt 0:05:42]} 27. Be1 {[%emt 0:05:18]} Bh6 {[%emt 0:01:37]} 28. Re2 {[%emt 0:03:03]} Bg5 {[%emt 0:01:48]} 29. Kf2 {[%emt 0:01:54]} Bh4+ {[%emt 0:02:34]} 30. g3 {[%emt 0:00:26]} Bg5 {[%emt 0:00:53]} 31. Kf3 {[%emt 0:01:21]} Bc1 {[%emt 0:02:16]} 32. Bd2 {[%emt 0:08:17]} Bxd2 {[%emt 0:01:06]} 33. Rxd2 {[%emt 0:00:04]} Kf7 {[%emt 0:01:39]} 34. Rb2 {[%emt 0:00:38]} Rc3+ {[%emt 0:01:52]} 35. Kf2 {[%emt 0:00:32]} h5 {[%emt 0:00:59]} 36. h4 {[%emt 0:01:03]} Ke7 {[%emt 0:00:36]} 37. Re2 {[%emt 0:01:07]} Ra3 {[%emt 0:03:48]} 38. Rd2 {[%emt 0:01:00]} Kd7 {[%emt 0:00:43]} 39. Re2 {[%emt 0:00:49]} Rc3 {[%emt 0:01:42]} 40. Re3 {[%emt 0:00:38]} Rc2+ {[%emt 0:02:32]} 41. Re2 {[%emt 0:00:17]} Rc3 {[%emt 0:03:41]} 42. Re3 {[%emt 0:00:20]} Rc2+ {[%emt 0:01:41]} 43. Re2 {[%emt 0:00:11]} Rc3 {[%emt 0:00:30]} 44. Kf1 Ra3 45. Kf2 Kc7 46. Rc2+ Kb7 47. Rc6 Rxa2+ 48. Kf3 1/2-1/2

[Event "GM ZIA Smirity-A 2025"]
[Site "Dhaka"]
[Date "2025.02.17"]
[Round "2.15"]
[White "Abrar, Reazul Ahnaf Mohamma"]
[Black "Hamid, Rani"]
[Result "1-0"]
[Annotator "NA"]
[ECO "B48"]
[WhiteElo "1771"]
[BlackElo "1913"]
[PlyCount "67"]
[EventDate "2025.02.17"]
[EventType "swiss"]
[EventCountry "BAN"]
[SourceTitle "playchess.com"]
[Source "ChessBase"]
[SourceQuality "1"]
[TimeControl "5400+30"]

1. e4 c5 2. Nf3 e6 3. d4 cxd4 4. Nxd4 a6 5. Nc3 Qc7 6. Be2 Nf6 7. a3 Be7 8. O-O O-O 9. Be3 Nc6 10. f4 d6 11. Qe1 Bd7 12. Rd1 Nxd4 13. Bxd4 Bc6 14. Bf3 Rac8 15. Qg3 b5 16. e5 Ne8 {[%emt 1:38:30]} 17. Ne4 {[%emt 1:39:00]} Bxe4 {[%emt 0:00:30]} 18. Bxe4 {[%emt 0:00:30]} f5 {[%emt 0:00:30]} 19. exf6 {[%emt 0:00:30]} Bxf6 {[%emt 0:00:30]} 20. c3 {[%emt 0:00:30]} Bxd4+ {[%emt 0:00:30]} 21. Rxd4 {[%emt 0:00:30]} Nf6 {[%emt 0:00:30]} 22. Re1 {[%emt 0:00:30]} Rce8 {[%emt 0:00:30]} 23. Bc2 {[%emt 0:00:30]} Kh8 {[%emt 0:00:30]} 24. Red1 {[%emt 0:00:30]} d5 {[%emt 0:00:30]} 25. Re1 {[%emt 0:00:30]} g6 {[%emt 0:00:30]} 26. Re5 {[%emt 0:00:30]} Qf7 {[%emt 0:00:30]} 27. Qe1 {[%emt 0:00:30]} Nd7 {[%emt 0:00:30]} 28. Rg5 {[%emt 0:00:30]} Qf6 {[%emt 0:00:30]} 29. Qh4 {[%emt 0:00:30]} Kg7 {[%emt 0:00:30]} 30. Rg4 {[%emt 0:00:30]} Qf7 {[%emt 0:00:30]} 31. Rd3 {[%emt 0:00:30]} Ne5 {[%emt 0:00:30]} 32. Rh3 Kg8 33. Rg5 Qa7+ 34. Kh1 1-0

[Event "GM ZIA Smirity-A 2025"]
[Site "Dhaka"]
[Date "2025.02.18"]
[Round "3.1"]
[White "Mehdi Hasan Parag"]
[Black "Sakline Mostafa, Sajid"]
[Result "0-1"]
[Annotator "ChessBase"]
[ECO "B31"]
[WhiteElo "2158"]
[BlackElo "2199"]
[PlyCount "74"]
[EventDate "2025.02.17"]
[EventType "swiss"]
[EventCountry "BAN"]
[SourceTitle "playchess.com"]
[Source "ChessBase"]
[SourceQuality "1"]
[TimeControl "5400+30"]

1. e4 {[%emt 0:05:07]} c5 {[%emt 0:00:18]} 2. Nf3 {[%emt 0:00:12]} Nc6 {[%emt 0:00:02]} 3. Bb5 {[%emt 0:00:09]} Nf6 {[%emt 0:00:01]} 4. Bxc6 {[%emt 0:00:16]} dxc6 {[%emt 0:00:01]} 5. d3 {[%emt 0:00:13]} g6 {[%emt 0:00:16]} 6. h3 {[%emt 0:00:13]} Bg7 {[%emt 0:00:06]} 7. O-O {[%emt 0:00:18]} O-O {[%emt 0:00:04]} 8. Nc3 {[%emt 0:00:28]} b6 {[%emt 0:00:21]} 9. Bg5 {[%emt 0:01:34]} Ne8 {[%emt 0:00:49]} 10. Qd2 {[%emt 0:00:30]} f6 {[%emt 0:00:15]} 11. Be3 {[%emt 0:00:25]} e5 {[%emt 0:00:22]} 12. Nh2 {[%emt 0:00:56]} Nc7 {[%emt 0:03:03]} 13. f4 {[%emt 0:02:17]} exf4 {[%emt 0:00:12]} 14. Rxf4 {[%emt 0:00:21]} Ne6 {[%emt 0:12:37]} 15. Rf2 {[%emt 0:01:09]} Nd4 {[%emt 0:01:11]} 16. Bh6 {[%emt 0:02:10]} Be6 {[%emt 0:00:57]} 17. Raf1 {[%emt 0:00:17]} c4 {[%emt 0:03:22]} 18. Bxg7 {[%emt 0:02:14]} Kxg7 {[%emt 0:00:03]} 19. e5 {[%emt 0:00:10]} f5 {[%emt 0:01:51]} 20. Ng4 {[%emt 0:01:11]} Qh4 {[%emt 0:01:20]} 21. Ne3 {[%emt 0:17:59]} Rad8 {[%emt 1:13:49]} 22. Rf4 {[%emt 0:03:00]} Qe7 {[%emt 0:00:00]} 23. Qf2 {[%emt 0:00:57]} cxd3 {[%emt 0:00:00]} 24. cxd3 {[%emt 0:02:03]} c5 {[%emt 0:00:00]} 25. h4 {[%emt 0:02:18]} Nc6 {[%emt 0:00:00]} 26. Nc4 {[%emt 0:14:33]} Rxd3 {[%emt 0:00:00]} 27. Re1 {[%emt 0:00:27]} Rd4 {[%emt 0:00:00]} 28. Nd6 {[%emt 0:01:55]} Nb4 {[%emt 0:00:00]} 29. Rxd4 {[%emt 0:12:32]} cxd4 {[%emt 0:00:00]} 30. Qxd4 {[%emt 0:00:20]} Nc2 {[%emt 0:00:00]} 31. Qd2 {[%emt 0:00:09]} Nxe1 {[%emt 0:00:00]} 32. Qxe1 {[%emt 0:00:11]} Qc7 {[%emt 0:00:00]} 33. Qg3 {[%emt 0:01:45]} f4 {[%emt 0:00:00]} 34. Qg5 {[%emt 0:02:21]} h6 {[%emt 0:00:00]} 35. Qf6+ {[%emt 0:01:50]} Rxf6 {[%emt 0:00:00]} 36. Ne8+ {[%emt 0:00:03]} Kf7 {[%emt 0:00:00]} 37. Nxc7 {[%emt 0:01:31]} Rf5 {[%emt 0:00:00]} 0-1

[Event "GM ZIA Smirity-A 2025"]
[Site "Dhaka"]
[Date "2025.02.18"]
[Round "3.2"]
[White "Zia, Tahsin Tajwar"]
[Black "Sajidul, Haque"]
[Result "1-0"]
[Annotator "ChessBase"]
[ECO "A45"]
[WhiteElo "2323"]
[BlackElo "2107"]
[PlyCount "77"]
[EventDate "2025.02.17"]
[EventType "swiss"]
[EventCountry "BAN"]
[SourceTitle "playchess.com"]
[Source "ChessBase"]
[SourceQuality "1"]
[TimeControl "5400+30"]

1. d4 {[%emt 1:31:00]} Nf6 {[%emt 1:31:00]} 2. Bg5 {[%emt 0:00:00]} Ne4 {[%emt 0:00:00]} 3. Bf4 {[%emt 0:00:00]} d5 {[%emt 0:00:00]} 4. e3 {[%emt 0:00:00]} c5 {[%emt 0:00:00]} 5. Bd3 {[%emt 0:00:00]} Qb6 {[%emt 0:00:00]} 6. Bxe4 {[%emt 0:00:00]} dxe4 {[%emt 0:00:00]} 7. Nc3 {[%emt 0:00:00]} cxd4 {[%emt 0:00:00]} 8. Qxd4 {[%emt 0:00:00]} Qxd4 {[%emt 0:00:00]} 9. exd4 {[%emt 0:00:00]} f5 {[%emt 0:00:00]} 10. f3 {[%emt 0:00:00]} exf3 {[%emt 0:00:00]} 11. Nxf3 {[%emt 0:00:00]} e6 {[%emt 0:00:00]} 12. O-O-O {[%emt 0:00:00]} Bb4 {[%emt 0:00:00]} 13. Nb5 {[%emt 0:00:00]} Na6 {[%emt 0:00:00]} 14. c3 {[%emt 0:00:00]} Bd7 {[%emt 0:00:00]} 15. a4 {[%emt 0:00:00]} Be7 {[%emt 0:00:00]} 16. d5 {[%emt 0:00:00]} Bxb5 {[%emt 0:00:00]} 17. axb5 {[%emt 0:00:00]} Nc5 {[%emt 0:00:00]} 18. Nd4 {[%emt 0:00:00]} exd5 {[%emt 0:00:00]} 19. Nxf5 {[%emt 0:00:00]} Ne6 {[%emt 0:00:00]} 20. Rhe1 {[%emt 0:00:00]} Kf7 {[%emt 0:00:00]} 21. Nxe7 {[%emt 0:00:00]} Nxf4 {[%emt 0:00:00]} 22. Nxd5 {[%emt 0:00:00]} Nxd5 {[%emt 0:00:00]} 23. Rxd5 {[%emt 0:00:00]} Rad8 {[%emt 0:00:00]} 24. Rxd8 {[%emt 0:00:00]} Rxd8 {[%emt 0:00:00]} 25. Kc2 {[%emt 0:00:00]} Rd5 {[%emt 0:00:00]} 26. c4 {[%emt 0:00:00]} Rf5 {[%emt 0:00:00]} 27. Re2 {[%emt 0:00:00]} g5 {[%emt 0:00:00]} 28. Kc3 {[%emt 0:00:00]} h5 {[%emt 0:00:00]} 29. b4 {[%emt 0:00:00]} b6 {[%emt 0:00:00]} 30. Ra2 {[%emt 0:00:00]} Ke6 {[%emt 0:00:00]} 31. Rxa7 {[%emt 0:00:00]} Rf2 {[%emt 0:00:00]} 32. Rb7 {[%emt 0:00:00]} Rxg2 {[%emt 0:00:00]} 33. Rxb6+ {[%emt 0:00:00]} Kd7 {[%emt 0:00:00]} 34. Rg6 {[%emt 0:00:00]} g4 {[%emt 0:00:00]} 35. Rg7+ {[%emt 0:00:00]} Kc8 {[%emt 0:00:00]} 36. b6 {[%emt 0:00:00]} h4 {[%emt 0:00:10]} 37. c5 {[%emt 0:00:00]} Rg1 {[%emt 0:03:06]} 38. Kc4 {[%emt 0:00:00]} h3 {[%emt 0:03:20]} 39. c6 {[%emt 0:00:00]} 1-0

[Event "GM ZIA Smirity-A 2025"]
[Site "Dhaka"]
[Date "2025.02.18"]
[Round "3.3"]
[White "Noshin, Anjum"]
[Black "Md Minhaz Uddin"]
[Result "0-1"]
[Annotator "ChessBase"]
[ECO "C42"]
[WhiteElo "2053"]
[BlackElo "2230"]
[PlyCount "50"]
[EventDate "2025.02.17"]
[EventType "swiss"]
[EventCountry "BAN"]
[SourceTitle "playchess.com"]
[Source "ChessBase"]
[SourceQuality "1"]
[TimeControl "5400+30"]

1. e4 {[%emt 0:00:07]} e5 {[%emt 0:02:25]} 2. Nf3 {[%emt 0:00:18]} Nf6 {[%emt 0:00:05]} 3. Nxe5 {[%emt 0:00:22]} d6 {[%emt 0:00:04]} 4. Nf3 {[%emt 0:00:09]} Nxe4 {[%emt 0:00:05]} 5. d4 {[%emt 0:00:06]} d5 {[%emt 0:00:03]} 6. Bd3 {[%emt 0:00:08]} Nc6 {[%emt 0:00:04]} 7. O-O {[%emt 0:00:14]} Be7 {[%emt 0:00:02]} 8. Nbd2 {[%emt 0:01:07]} f5 {[%emt 0:02:56]} 9. c4 {[%emt 0:06:19]} Nb4 {[%emt 0:00:04]} 10. Be2 {[%emt 0:01:02]} Be6 {[%emt 0:01:33]} 11. Ne5 {[%emt 0:07:37]} O-O {[%emt 0:01:02]} 12. a3 {[%emt 0:10:15]} Nc6 {[%emt 0:04:48]} 13. Nxc6 {[%emt 0:11:06]} bxc6 {[%emt 0:00:14]} 14. Nf3 {[%emt 0:09:52]} Bf6 {[%emt 0:07:15]} 15. Qa4 {[%emt 0:04:42]} Qd6 {[%emt 0:10:18]} 16. c5 {[%emt 0:02:39]} Qd7 {[%emt 0:00:04]} 17. h4 {[%emt 0:00:20]} Bf7 {[%emt 0:05:37]} 18. Bg5 {[%emt 0:21:01]} Bh5 {[%emt 0:05:37]} 19. Bf4 {[%emt 0:09:21]} Rae8 {[%emt 0:32:38]} 20. Qd1 {[%emt 0:08:25]} Qe7 {[%emt 0:04:58]} 21. Ne5 {[%emt 0:04:39]} Bxe2 {[%emt 0:03:10]} 22. Qxe2 {[%emt 0:00:04]} Bxe5 {[%emt 0:00:10]} 23. Bxe5 {[%emt 0:00:14]} Qxh4 {[%emt 0:00:10]} 24. b4 {[%emt 0:01:42]} f4 {[%emt 0:01:27]} 25. Qf3 {[%emt 0:00:39]} Ng5 {[%emt 0:01:36]} 0-1

[Event "GM ZIA Smirity-A 2025"]
[Site "Dhaka"]
[Date "2025.02.18"]
[Round "3.5"]
[White "Islam, Khandaker Aminul"]
[Black "Kazi Zarin, Tasnim"]
[Result "0-1"]
[Annotator "ChessBase"]
[ECO "A14"]
[WhiteElo "2169"]
[BlackElo "1897"]
[PlyCount "90"]
[EventDate "2025.02.17"]
[EventType "swiss"]
[EventCountry "BAN"]
[SourceTitle "playchess.com"]
[Source "ChessBase"]
[SourceQuality "1"]
[TimeControl "5400+30"]

1. Nf3 {[%emt 0:00:09]} d5 {[%emt 0:00:12]} 2. c4 {[%emt 0:00:20]} e6 {[%emt 0:00:15]} 3. g3 {[%emt 0:01:20]} Nf6 {[%emt 0:01:24]} 4. Bg2 {[%emt 0:01:46]} c5 {[%emt 0:00:39]} 5. O-O {[%emt 0:00:42]} Nc6 {[%emt 0:00:34]} 6. b3 {[%emt 0:00:20]} Be7 {[%emt 0:03:46]} 7. e3 {[%emt 0:01:28]} O-O {[%emt 0:07:52]} 8. Bb2 {[%emt 0:01:05]} dxc4 {[%emt 0:03:16]} 9. bxc4 {[%emt 0:00:04]} Qd3 {[%emt 0:00:04]} 10. Qc1 {[%emt 0:05:00]} Rd8 {[%emt 0:09:58]} 11. Na3 {[%emt 0:03:55]} a6 {[%emt 0:00:53]} 12. Rd1 {[%emt 0:11:33]} Qd6 {[%emt 0:03:45]} 13. d4 {[%emt 0:02:08]} Qc7 {[%emt 0:00:58]} 14. Qb1 {[%emt 0:08:17]} b6 {[%emt 0:06:46]} 15. Ng5 {[%emt 0:20:28]} cxd4 {[%emt 0:16:56]} 16. exd4 {[%emt 0:00:50]} h6 {[%emt 0:02:47]} 17. Nxf7 {[%emt 0:22:05]} Kxf7 {[%emt 0:03:53]} 18. d5 {[%emt 0:00:58]} exd5 {[%emt 0:07:03]} 19. cxd5 {[%emt 0:00:15]} Bg4 {[%emt 0:02:33]} 20. Rc1 {[%emt 0:09:17]} Nxd5 {[%emt 0:02:25]} 21. Qe4 {[%emt 0:01:19]} Be6 {[%emt 0:01:58]} 22. Nc4 {[%emt 0:03:11]} Qd7 {[%emt 0:02:30]} 23. Rd1 {[%emt 0:01:12]} Qc8 {[%emt 0:11:35]} 24. Rac1 {[%emt 0:00:52]} Bc5 {[%emt 0:00:15]} 25. Qh7 {[%emt 0:03:43]} Nf6 {[%emt 0:01:47]} 26. Bxf6 {[%emt 0:00:30]} Kxf6 {[%emt 0:00:02]} 27. Qe4 {[%emt 0:00:36]} Bxc4 {[%emt 0:02:34]} 28. Qxc4 {[%emt 0:00:28]} Ne5 {[%emt 0:07:50]} 29. Qf4+ {[%emt 0:00:26]} Qf5 {[%emt 0:00:00]} 30. Qxf5+ {[%emt 0:00:33]} Kxf5 {[%emt 0:00:00]} 31. Bxa8 {[%emt 0:00:02]} Rxa8 {[%emt 0:00:00]} 32. Kg2 {[%emt 0:00:31]} Ng4 {[%emt 0:02:00]} 33. Rd7 {[%emt 0:00:33]} Kg6 {[%emt 0:00:00]} 34. f3 {[%emt 0:00:29]} Nf6 {[%emt 0:01:00]} 35. Rd3 {[%emt 0:00:23]} Re8 {[%emt 0:00:00]} 36. Rc2 {[%emt 0:00:01]} Re1 {[%emt 0:00:00]} 37. h4 {[%emt 0:00:27]} Nh5 {[%emt 0:00:00]} 38. Kh2 {[%emt 0:00:19]} Rf1 {[%emt 0:00:00]} 39. Re2 {[%emt 0:00:41]} Rc1 {[%emt 0:00:00]} 40. Rd7 {[%emt 0:00:40]} Rc3 {[%emt 0:00:00]} 41. Kg2 {[%emt 0:00:44]} a5 {[%emt 0:00:00]} 42. Re6+ {[%emt 0:00:35]} Nf6 {[%emt 0:00:00]} 43. g4 {[%emt 0:00:21]} Rc2+ {[%emt 0:00:00]} 44. Kg3 {[%emt 0:00:25]} h5 {[%emt 0:01:24]} 45. Re5 {[%emt 0:00:29]} Nxd7 {[%emt 0:00:47]} 0-1

[Event "GM ZIA Smirity-A 2025"]
[Site "Dhaka"]
[Date "2025.02.18"]
[Round "3.6"]
[White "Ghosh, Chanchal Kumer"]
[Black "Mohammad, Javed"]
[Result "0-1"]
[Annotator "NA"]
[ECO "B45"]
[WhiteElo "2041"]
[BlackElo "2139"]
[PlyCount "38"]
[EventDate "2025.02.17"]
[EventType "swiss"]
[EventCountry "BAN"]
[SourceTitle "playchess.com"]
[Source "ChessBase"]
[SourceQuality "1"]
[TimeControl "5400+30"]

1. e4 {[%emt 0:09:08]} c5 {[%emt 0:00:21]} 2. Nf3 {[%emt 0:00:10]} Nc6 {[%emt 0:00:50]} 3. d4 {[%emt 0:00:12]} cxd4 {[%emt 0:00:10]} 4. Nxd4 {[%emt 0:00:09]} Nf6 {[%emt 0:00:32]} 5. Nc3 {[%emt 0:00:11]} e6 {[%emt 0:00:22]} 6. Bf4 {[%emt 0:06:35]} Bb4 {[%emt 0:01:41]} 7. Ndb5 {[%emt 0:04:46]} Nxe4 {[%emt 0:00:33]} 8. Qf3 {[%emt 0:00:31]} d5 {[%emt 0:00:05]} 9. Nc7+ {[%emt 0:01:23]} Kf8 {[%emt 0:00:26]} 10. Nxa8 {[%emt 0:00:14]} e5 {[%emt 0:02:21]} 11. Bg3 {[%emt 0:10:25]} Qa5 {[%emt 0:02:35]} 12. Bc4 {[%emt 0:23:04]} Nd4 {[%emt 0:29:45]} 13. Qd3 {[%emt 0:07:23]} Bxc3+ {[%emt 0:07:23]} 14. bxc3 {[%emt 0:00:44]} dxc4 {[%emt 0:14:20]} 15. Qxc4 {[%emt 0:03:55]} Nxc2+ {[%emt 0:01:50]} 16. Kd1 {[%emt 0:00:35]} Bf5 {[%emt 0:03:16]} 17. Qc7 {[%emt 0:22:47]} Nxc3+ {[%emt 0:03:30]} 18. Kd2 {[%emt 0:04:05]} Nb1+ {[%emt 0:00:29]} 19. Kd1 {[%emt 0:02:18]} Qd2# {[%emt 0:00:03]} 0-1

[Event "GM ZIA Smirity-A 2025"]
[Site "Dhaka"]
[Date "2025.02.18"]
[Round "3.7"]
[White "Anata, Choudhury"]
[Black "Alam, Monjur"]
[Result "1-0"]
[Annotator "ChessBase"]
[ECO "B28"]
[WhiteElo "2206"]
[BlackElo "1906"]
[PlyCount "75"]
[EventDate "2025.02.17"]
[EventType "swiss"]
[EventCountry "BAN"]
[SourceTitle "playchess.com"]
[Source "ChessBase"]
[SourceQuality "1"]
[TimeControl "5400+30"]

1. e4 {[%emt 0:00:05]} e6 {[%emt 0:15:18]} 2. d4 {[%emt 0:00:12]} d5 {[%emt 0:00:29]} 3. e5 {[%emt 0:00:11]} c5 {[%emt 0:00:28]} 4. c3 {[%emt 0:00:07]} Nc6 {[%emt 0:00:03]} 5. Nf3 {[%emt 0:00:08]} a6 {[%emt 0:00:10]} 6. Bd3 {[%emt 0:00:34]} cxd4 {[%emt 0:01:37]} 7. cxd4 {[%emt 0:00:43]} Nge7 {[%emt 0:00:02]} 8. Na3 {[%emt 0:00:16]} Nf5 {[%emt 0:01:25]} 9. Nc2 {[%emt 0:00:26]} Be7 {[%emt 0:04:23]} 10. O-O {[%emt 0:00:24]} Qb6 {[%emt 0:03:15]} 11. g4 {[%emt 0:00:59]} Nh6 {[%emt 0:02:37]} 12. h3 {[%emt 0:00:12]} Bd7 {[%emt 0:00:25]} 13. Bd2 {[%emt 0:00:25]} Ng8 {[%emt 0:04:34]} 14. b4 {[%emt 0:00:18]} h5 {[%emt 0:00:37]} 15. g5 {[%emt 0:00:08]} g6 {[%emt 0:00:17]} 16. a4 {[%emt 0:03:49]} a5 {[%emt 0:06:14]} 17. b5 {[%emt 0:00:35]} Na7 {[%emt 0:00:57]} 18. Ne3 {[%emt 0:08:13]} Nc8 {[%emt 0:03:10]} 19. Qb1 {[%emt 0:03:18]} Bf8 {[%emt 0:07:23]} 20. Rc1 {[%emt 0:05:59]} Nce7 {[%emt 0:01:19]} 21. h4 {[%emt 0:08:38]} Nf5 {[%emt 0:02:46]} 22. Bxf5 {[%emt 0:03:31]} gxf5 {[%emt 0:00:23]} 23. Ng2 {[%emt 0:00:11]} Ne7 {[%emt 0:00:44]} 24. Qd3 {[%emt 0:02:17]} Ng6 {[%emt 0:01:33]} 25. Rc2 {[%emt 0:01:02]} Be7 {[%emt 0:04:26]} 26. Nf4 {[%emt 0:00:21]} Kf8 {[%emt 0:05:14]} 27. Rac1 {[%emt 0:01:14]} Qd8 {[%emt 0:03:35]} 28. Rc7 {[%emt 0:10:18]} b6 {[%emt 0:02:00]} 29. R1c2 {[%emt 0:00:44]} Kg7 {[%emt 0:03:17]} 30. Bc1 {[%emt 0:01:07]} Rc8 {[%emt 0:04:33]} 31. Rxc8 {[%emt 0:03:41]} Bxc8 {[%emt 0:00:25]} 32. Nxg6 {[%emt 0:00:20]} fxg6 {[%emt 0:00:59]} 33. Ba3 {[%emt 0:00:11]} Bb7 {[%emt 0:02:04]} 34. Qc3 {[%emt 0:01:20]} Kf7 {[%emt 0:11:09]} 35. Qc7 {[%emt 0:00:54]} Ba8 {[%emt 0:00:19]} 36. Qa7 {[%emt 0:01:01]} Re8 {[%emt 0:00:35]} 37. Rc7 {[%emt 0:00:10]} Kf8 {[%emt 0:00:43]} 38. Rxe7 {[%emt 0:00:47]} 1-0